Cogmind - Beta 9.4 @@@ ROGUE MODE // 2020.03.08 @ 18:08:48 // Halloween2019/Abominations Player: Ape Result: Destroyed by Lesser Abomination with Light Assault Rifle Performance ------------- Evolutions (0) 0 Regions Visited (1) 200 Robots Destroyed (3) 15 Value Destroyed (126) 126 Prototype IDs (0) 0 Alien Tech Used (0) 0 Bonus (0) 0 TOTAL SCORE: 341 Bonus ------- None Cogmind --------- Core Integrity 0/250 Matter 296/300 Energy 250/250 System Corruption 7% Temperature Cool (6) Movement Core (300) Ox5 Location -10/Materials Parts ------- > --- POWER (1) -------- Ion Engine > --- PROPULSION (2) --- (None) > --- UTILITY (2) ------ Small Storage Unit Medium Storage Unit > --- WEAPON (2) ------- (None) > --- INVENTORY (10) --- Light Treads Light Treads Wheel Wheel Peak State ------------ > --- POWER ------------ Ion Engine > --- PROPULSION ------- Aluminum Leg Aluminum Leg > --- UTILITY ---------- Small Storage Unit Medium Storage Unit > --- WEAPON ----------- Small Laser Light Assault Rifle > --- INVENTORY -------- Light Treads Light Treads Wheel Wheel [Rating: 7] Favorites ----------- Power Ion Engine Engine Ion Engine Propulsion Aluminum Leg Leg Aluminum Leg Utility Small Storage Unit Storage Small Storage Unit Weapon Light Assault Rifle Energy Gun Small Laser Ballistic Gun Light Assault Rifle Build | -11 -10 ------- Run | Scr Mat Slots Evolved . | . . Power . | . . Propulsion . | . . Utility . | . . Weapon . | . . Parts Attached 9 | 6 3 Power 2 | 1 1 Engine 2 | 1 1 Core . | . . Reactor . | . . Propulsion 2 | 2 . Treads . | . . Leg 2 | 2 . Wheel . | . . Hover . | . . Flight . | . . Utility 2 | 1 1 Device . | . . Storage 2 | 1 1 Processor . | . . Hackware . | . . Protection . | . . Artifact . | . . Weapon 3 | 2 1 Energy Gun 1 | . 1 Energy Cannon . | . . Ballistic Gun 2 | 2 . Ballistic Cannon . | . . Launcher . | . . Special Weapon . | . . Impact Weapon . | . . Slashing Weapon . | . . Piercing Weapon . | . . Special Melee Weapon . | . . Unidentified Prototypes . | . . Parts Lost 6 | . 6 Power 1 | . 1 Propulsion 2 | . 2 Utility . | . . Weapon 3 | . 3 Highest Loss Streak 4 | . 4 Average Slot Usage (%) 82 | . 82 Engine 11 | . 11 Leg 25 | . 25 Storage 19 | . 19 Energy Gun 4 | . 4 Ballistic Gun 19 | . 19 Naked Turns . | . . Heaviest Build 19 | 11 19 Greatest Support 20 | 20 20 Greatest Overweight (x) 3 | 3 1 Average Overweight (x) . | . . Largest Inventory Capacity 10 | 6 10 Average Capacity 7 | 5 7 Most Carried 6 | 6 6 Average Carried 5 | 4 5 Final Capacity 10 | 6 10 Final Carried 6 | 6 4 Class Distribution -------------------- 100% | Mutant Dominant Class ---------------- Mutant | -10/Materials Resources | -11 -10 ----------- Run | Scr Mat Matter Collected 324 | 253 71 Remotely . | . . Salvage Created 174 | 54 120 Parts 8 | 1 7 Haulers Intercepted . | . . Recyclers Shooed . | . . Parts Field Recycled . | . . Retrieved Matter . | . . Parts Self-Destructed . | . . Prevented . | . . Kills | -11 -10 ------- Run | Scr Mat Combat Hostiles Destroyed 2 | . 2 Guns 2 | . 2 Classes Destroyed 2 | 1 1 Recycler 1 | 1 . Abomination 2 | . 2 Best Kill Streak 2 | 1 2 Combat Bots Only 2 | . 2 Max Kills in Single Turn 1 | 1 1 Gunslinging . | . . Exploded . | . . Melee . | . . Uniques/NPCs Destroyed . | . . Combat | -11 -10 -------- Run | Scr Mat Damage Taken 945 | . 945 Core 256 | . 256 Absorbed by Shields . | . . Core Remaining (%) 100 | 100 . Volleys Fired 38 | 8 30 Largest 2 | 2 2 Hottest 60 | 40 60 Shots Fired 67 | 16 51 Gun 67 | 16 51 Cannon . | . . Launcher . | . . Special . | . . Kinetic 59 | 16 43 Thermal 8 | . 8 Explosive . | . . Electromagnetic . | . . Robot Hit Streak 9 | 4 9 Robot Miss Streak 7 | 2 7 Penetration Max . | . . Secondary Targets . | . . Shots Hit Robots 44 | 10 34 Core Hits 16 | 3 13 Critical Hits . | . . Critical Kills . | . . Critical Parts Destroyed . | . . Melee Attacks . | . . Impact . | . . Slashing . | . . Piercing . | . . Sneak Attacks . | . . Combat Hostiles . | . . Follow-up Attacks . | . . Damage Inflicted 346 | 62 284 Guns 346 | 62 284 Cannons . | . . Explosions . | . . Melee . | . . Ramming . | . . Kinetic 299 | 62 237 Thermal 47 | . 47 Explosive . | . . Electromagnetic . | . . Impact . | . . Slashing . | . . Piercing . | . . Highest Corruption 5 | . 5 Average Corruption 2 | . 2 Corruption Purged . | . . Effects 3 | . 3 Matter Fused 1 | . 1 Energy Discharges 1 | . 1 Data Loss (minor) 1 | . 1 Overload Shots . | . . Overflow Damage . | . . Projectiles . | . . Explosions . | . . Melee . | . . Knockbacks . | . . Impact . | . . Kinetic . | . . Secondary . | . . Self-Inflicted Damage . | . . Shots . | . . Rammed . | . . Targets Rammed . | . . Kicked . | . . Crushed . | . . Highest Temperature 20 | . 20 Average Temperature 9 | . 9 Received Heat Transfer 63 | . 63 Siege Activations . | . . Robots Corrupted . | . . Combat Hostiles . | . . Parts Fried . | . . Impact Corruptions . | . . Robots Melted . | . . Combat Hostiles . | . . Parts Melted . | . . Heat Transferred 62 | . 62 Parts Sabotaged . | . . Parts Stolen . | . . Parts Stripped . | . . Power Chain Reactions . | . . Missiles Intercepted . | . . Alert | -11 -10 ------- Run | Scr Mat Peak Influence 30 | 5 30 Average Influence 2 | 1 2 Maximum Alert Level . | . . Low Security (%) 100 | 100 100 Level 1 . | . . Level 2 . | . . Level 3 . | . . Level 4 . | . . Level 5 . | . . High Security . | . . Max Security . | . . Squads Dispatched 1 | . 1 Investigation . | . . Extermination . | . . Reinforcement 1 | . 1 Assault . | . . Garrison . | . . Intercept . | . . Construction Impeded . | . . Haulers Reinforced . | . . Stealth | -11 -10 --------- Run | Scr Mat Distress Signals . | . . Communications Jammed . | . . Distress Signals . | . . Times Spotted 10 | . 10 Peak Tracking Total 8 | . 8 Tactical Retreats . | . . Traps | -11 -10 ------- Run | Scr Mat Traps Triggered 1 | . 1 Indirectly . | . . Trap Hack Attempts . | . . Triggered . | . . Disarmed . | . . Reprogrammed . | . . Reused . | . . Traps Extracted . | . . Installed . | . . Triggered 1 | . 1 Machines | -11 -10 ---------- Run | Scr Mat Machines Disabled . | . . Max in Single Turn . | . . Machines Sabotaged . | . . Garrisons Compromised . | . . Overloaded Fab Kills . | . . Fab Network Shutdowns . | . . Hacking | -11 -10 --------- Run | Scr Mat Machines Accessed . | . . Terminals . | . . Fabricators . | . . Repair Stations . | . . Recycling Units . | . . Scanalyzers . | . . Garrison Access . | . . Total Hacks . | . . Successful . | . . Failed . | . . Catastrophic . | . . Database Lockouts . | . . Manual . | . . Terminals . | . . Fabricators . | . . Repair Stations . | . . Recycling Units . | . . Scanalyzers . | . . Garrison Access . | . . Terminal Hacks . | . . Fabricator Hacks . | . . Repair Station Hacks . | . . Recycling Unit Hacks . | . . Scanalyzer . | . . Garrison Access Hacks . | . . Unauthorized Hacks . | . . Terminals . | . . Fabricators . | . . Repair Stations . | . . Recycling Units . | . . Scanalyzers . | . . Garrison Access . | . . Data Cores Recovered . | . . Used . | . . Hacking Detections . | . . Full Trace Events . | . . Feedback Events . | . . Feedback Blocked . | . . Robot Schematics Acquired . | . . Robots Built . | . . Matter . | . . Time . | . . Total Robot Build Rating . | . . Part Schematics Acquired . | . . Parts Built . | . . Matter . | . . Time . | . . Total Part Build Rating . | . . Parts Repaired . | . . Time . | . . Parts Recycled . | . . Recycled Matter . | . . Retrieved Matter . | . . Retrieved Components . | . . Parts Scanalyzed . | . . Part Schematics Acquired . | . . Parts Damaged . | . . Bothacking | -11 -10 ------------ Run | Scr Mat Used RIF Installer . | . . Robots Hacked . | . . Non-combat . | . . Combat . | . . Robot Hacks Applied . | . . Relay Couplers Released . | . . Robots Rewired . | . . Allies Hacked . | . . Hacks Repelled . | . . Allies | -11 -10 -------- Run | Scr Mat Total Allies . | . . Largest Group . | . . Highest-Rated Group . | . . Highest-Rated Ally . | . . Total Orders . | . . Ally Attacks . | . . Total Damage . | . . Kills . | . . Allies Corrupted . | . . Allies Melted . | . . Intel | -11 -10 ------- Run | Scr Mat Robot Analysis Total . | . . Derelict Logs Recovered . | . . Drone Launches . | . . Drone Recoveries . | . . Exploration | -11 -10 ------------- Run | Scr Mat Turns Passed 355 | 117 238 Spaces Moved 160 | 57 103 Core 5 | 5 . Treads . | . . Legs 155 | 52 103 Wheels . | . . Hover . | . . Flight . | . . Fastest Speed 50 | 50 120 Average Speed 121 | 123 120 Slowest Speed 200 | 200 150 Overloaded Moves . | . . Propulsion Burnouts . | . . Robots Hopped . | . . Cave-ins Triggered . | . . Exploration Rate (%) 16 | 4 28 Regions Visited 1 Branch Regions . Pre-discovered Areas . | . . Known Exits Taken . | . . Unknown Exits Taken 1 | 1 . Scrap Searched . | . . Spaces Dug . | . . Terrain Destroyed . | . . Melee . | . . Projectile . | . . AOE . | . . Actions | -11 -10 --------- Run | Scr Mat Total 234 | 88 146 Wait 23 | 12 11 Move 158 | 56 102 Hop . | . . Pick Up 6 | 6 . Fast Attach 7 | 6 1 Attach 2 | . 2 Detach . | . . Swap . | . . Drop . | . . Fire 38 | 8 30 Melee . | . . Ram . | . . Kick . | . . Crush . | . . Escape Stasis . | . . Rewire . | . . Trap . | . . Miscellaneous . | . . Route ------- -11/Scrapyard -10/Materials History --------- Turn | Location | Event 24 | -11/Scrapyard | Discovered new exit (range 16) 118 | -11/Scrapyard | Entered Materials 183 | -10/Materials | Discovered new exit (range 16) 309 | -10/Materials | Build established: Mutant 336 | -10/Materials | Core integrity fell below 50% 352 | -10/Materials | Core integrity fell below 20% 356 | -10/Materials | Destroyed by Lesser Abomination with Light Assault Rifle Last Messages --------------- 00323_ Lesser Abomination feeds off Hungry Anomaly, taking Lgt. Assault Rifle, Terrain Scan Processor. 00323_ Aluminum Leg destroyed. 00328_ Frozen by Ice Anomaly. 00329_ Lgt. Assault Rifle destroyed. 00334_ Lesser Abomination spits out Lgt. Assault Rifle. 00334_ Lesser Abomination feeds off Hungry Anomaly, taking Lgt. Assault Rifle. 00335_ Aluminum Leg destroyed. 00336_ Frozen by Ice Anomaly. 00337_ System corrupted: Energy discharge (-70). 00337_ Hungry Anomaly eats Wheel. 00338_ Minor Abomination spits out EM Shotgun. 00338_ Minor Abomination feeds off Hungry Anomaly, taking EM Shotgun. 00338_ Hungry Anomaly eats EM Shotgun. 00339_ Frozen by Ice Anomaly. 00343_ Lesser Abomination IFF system glitched. 00349_ O-16 Technician destroyed. 00350_ Lgt. Ion Engine springs to life within a quantum being. 00355_ System corrupted: Component data lost. Map ----- +----------------------------------------------------+ | ?????????????????????????????????????????????????? | | ?????????????????????????????????????????????????? | | ?????????????????????????????????????????????????? | | ?????????????????????????????????????????????????? | | ?????????????????????????????????????????????????? | | ?????????????????????????????????????????????????? | | ?????????????????????????????????????????????????? | | ?????????????????????????????????????????????????? | | ?????????????????????????????#???????????????????? | | ?????????????????????????????# ??????????????????? | | ?????????????????????????????# ??????????????????? | | ?????????????????????????????# #?????????????????? | | ?????????????????????????????# #?????????????????? | | ?????????????????????????????# #?????????????????? | | ????????????????????????######+####??????????????? | | ????????????????????????# %% #??????????????? | | ????????????????????????# % #######????????? | | ????????????????????????# # #???????? | | ????????????????????????# # #???????? | | ????????????????????????# # """ #???????? | | ????????????????????????# A # """ #???????? | | ????????????????????????# # """ ????????? | | ????????????????######### # ??????????? | | ????????+######## ##A#####+###+############# | | ??????# | | ????? < @ A | | ????? % % % n %% | | ??????? """" ## ##A#########/#### ###### | | ?????????""" ???# " " " # ## ## #??# | | ????????????????#"" " ""# ## ## #??# | | ????????????????######### ## ## #??# | | ????????????????????????# ## =## ##?# " | | ????????????????????????# ## # #?# " | | ????????????????????????# ## # #?# " | | ????????????????????????# ## + #?# | | ????????????????????????# A ## = # #?# | | ????????????????????????# ## # #?### | | ????????????????????????####A#################???? | | ???????????????????????????#n#???????????????????? | | ?????????????????????????### ###?????????????????? | | ?????????????? # ######## #?????????????????? | | ????????????? #?????????????????? | | ????????????? % #?????????????????? | | ????????????? % % #?????????????????? | | ????????????? ###### #?????????????????? | | ?????????????? # ## #?????????????????? | | ????????????????????"""" # #?????????????????? | | ????????????????????"""" # ##????????????????? | | ??????????????????? """" %!# #????????????????? | | ???????????????????""""" ! # #????????????????? | +----------------------------------------------------+ Best States ------------- Heat Dissipation 25 Energy Generation 10 Energy Capacity 250 Matter Stores 298 Matter Capacity 300 Sight Range 16 Terrain Scan Density 10 Evasion (%) 40 Item Schematics ----------------- None Robot Schematics ------------------ None Fabricated ------------ Nothing Alien Tech Used ----------------- None Achievements -------------- None Challenges ------------ None Game ------ Seed ParticleMyomerKinecellerator Manual? 0 Play Time 00:08:29 Cumulative 191.3 hours Start 2020.03.08 @ 18:03:58 End 2020.03.08 @ 18:08:48 Sessions 1 Manual Loads 0 Difficulty Rogue Special Mode Halloween2019/Abominations Game No. 92 Rogue 92 Adventurer 0 Explorer 0 Win Type - Total 10 Types 6/0/4/0/0/0/0 Lore% 73 Gallery% 81 Achievement% 60 Wizard Run 0 Options --------- ASCII 0 Keyboard 1 Movement Numpad Keybinds 0 Fullscreen 2 Font 36/TerminusFine Map View 76x50 Tactical HUD 1 Map Filters NONE Filters NONE Steam 1 RUN: 741261dc-decc-49a6-b726-b91e24a8b99e